Cogmind - Beta 17.1 @@@ ROGUE MODE // 2026.09.18 @ 19:41:03 Player: Maynard Result: Destroyed by G-47 Trooper with Particle Gun Performance ------------- Evolutions (2) 1000 Regions Visited (4) 800 Robots Destroyed (41) 205 Value Destroyed (992) 992 Prototype IDs (0) 0 Alien Tech Used (0) 0 Bonus (200) 200 TOTAL SCORE: 3197 Bonus ------- Pacifist 200 Cogmind --------- Core Integrity 0/550 Matter 270/300 Energy 100/100 System Corruption 0% Temperature Cool (70) Movement Core (400) Ox7 Location -8/Materials Parts ------- > --- POWER (2) -------- (None) > --- PROPULSION (3) --- (None) > --- UTILITY (4) ------ Large Storage Unit > --- WEAPON (2) ------- Particle Gun > --- INVENTORY (15) --- Advanced Targeting Computer Pulse Rifle Pulse Rifle Heavy Assault Rifle Autogun Datajack Peak State ------------ > --- POWER ------------ Light Nuclear Core Light Nuclear Core > --- PROPULSION ------- Light Treads > --- UTILITY ---------- Small Storage Unit Medium Matter Pod Advanced Targeting Computer Core Shielding > --- WEAPON ----------- Shock Rifle Flail > --- INVENTORY -------- Large Storage Unit Advanced Targeting Computer Heavy Assault Rifle Heavy Assault Rifle Autogun Shotgun Datajack Datajack [Rating: 19] Favorites ----------- Power Light Nuclear Core Engine Ion Engine Power Core Light Nuclear Core Propulsion Aluminum Leg Treads Light Treads Leg Aluminum Leg Wheel Wheel Utility Advanced Targeting Computer Device ECM Suite Storage Large Storage Unit Processor Advanced Targeting Computer Protection Core Shielding Weapon Flail Energy Gun Shock Rifle Ballistic Gun Autogun Ballistic Cannon Light Cannon Launcher Mini Grenade Launcher Impact Weapon Flail Build | -11 -10 -9 -9 -8 ------- Run | Yrd Mat Mat Min Mat Slots Evolved 4 | . . 2 . 2 Power 1 | . . . . 1 Propulsion 1 | . . 1 . . Utility 2 | . . 1 . 1 Weapon . | . . . . . Parts Attached 34 | 5 2 8 7 12 Power 6 | 1 . 1 1 3 Engine 2 | 1 . . . 1 Core 4 | . . 1 1 2 Reactor . | . . . . . Propulsion 5 | 2 . 1 . 2 Treads 1 | . . . . 1 Leg 3 | 2 . 1 . . Wheel 1 | . . . . 1 Hover . | . . . . . Flight . | . . . . . Utility 9 | 1 1 3 2 2 Device 1 | . 1 . . . Storage 5 | 1 . 2 . 2 Processor 1 | . . 1 . . Hackware . | . . . . . Protection 2 | . . . 2 . Artifact . | . . . . . Weapon 14 | 1 1 3 4 5 Energy Gun 4 | . . 2 . 2 Energy Cannon . | . . . . . Ballistic Gun 5 | 1 . . 2 2 Ballistic Cannon 1 | . 1 . . . Launcher 3 | . . 1 1 1 Special Weapon . | . . . . . Impact Weapon 1 | . . . 1 . Slashing Weapon . | . . . . . Piercing Weapon . | . . . . . Special Melee Weapon . | . . . . . Unidentified Prototypes . | . . . . . Parts Lost 23 | . . 1 9 13 Power 5 | . . . 2 3 Propulsion 5 | . . . 3 2 Utility 4 | . . . 1 3 Weapon 9 | . . 1 3 5 Highest Loss Streak 11 | . . 1 5 11 To Critical Strikes . | . . . . . Average Backups 9 | 1 4 11 11 7 Power 1 | . 1 2 1 . Propulsion . | . . . . . Utility 2 | . . 4 4 1 Weapon 3 | 1 2 4 4 4 Tool/Special . | . . . . . Unused Backups 14 | . . 6 . 8 Power 3 | . . 3 . . Propulsion 1 | . . . . 1 Utility 2 | . . . . 2 Weapon 5 | . . 2 . 3 Tool/Special 3 | . . 1 . 2 Average Slot Usage (%) 82 | . 91 99 77 70 Engine 1 | . 14 . . . Core 10 | . . 10 10 12 Treads 2 | . . . . 6 Leg 14 | . 28 33 12 . Device 4 | . 11 11 1 . Storage 14 | . 14 11 11 17 Processor 8 | . . 10 11 8 Protection 5 | . . . 8 8 Energy Gun 4 | . . 10 2 1 Ballistic Gun 4 | . 14 1 8 4 Launcher 5 | . . 9 8 2 Impact Weapon 4 | . . . 1 8 Peak Build Rating 19 | 5 7 18 17 19 Average Rating 14 | 3 6 17 14 15 On Entrance 7 | . 5 7 17 10 Avg Prop Armor Cover (%) . | . . . . . Naked Turns . | . . . . . Heaviest Build 38 | 12 17 31 33 38 Greatest Support 30 | 20 20 30 30 20 Greatest Overweight (x) 10 | . . 1 10 10 Average Overweight (x) . | . . . 2 1 Largest Inventory Capacity 15 | 8 8 15 15 15 Average Capacity 11 | 6 8 12 15 10 Most Carried 15 | 5 7 15 14 11 Average Carried 9 | 2 4 11 11 7 Final Capacity 15 | 8 8 15 15 15 Final Carried 14 | 3 7 14 10 6 Class Distribution -------------------- 100% | Mutant Dominant Class ---------------- Mutant | -10/Materials Mutant | -9/Materials Mutant | -9/Mines Mutant | -8/Materials Resources | -11 -10 -9 -9 -8 ----------- Run | Yrd Mat Mat Min Mat Matter Collected 1075 | 215 . 322 199 339 Remotely . | . . . . . Salvage Created 1136 | . . 402 163 571 Parts 68 | . . 30 7 31 Haulers Intercepted 1 | . . 1 . . Recyclers Shooed . | . . . . . Parts Field Recycled . | . . . . . Retrieved Matter . | . . . . . Parts Self-Destructed . | . . . . . Prevented . | . . . . . Parts Restored . | . . . . . Kills | -11 -10 -9 -9 -8 ------- Run | Yrd Mat Mat Min Mat Combat Hostiles Destroyed 32 | . . 11 4 17 Melee 1 | . . . . 1 Guns 10 | . . . 1 9 AOE 20 | . . 11 3 6 Classes Destroyed 12 | . . 11 1 . Worker 2 | . . 1 1 . Builder 2 | . . 2 . . Tunneler 1 | . . 1 . . Hauler 1 | . . 1 . . Recycler 3 | . . 1 2 . Mechanic 1 | . . 1 . . Watcher 3 | . . 2 . 1 Swarmer 11 | . . 4 . 7 Grunt 13 | . . 5 . 8 Duelist 2 | . . 1 . 1 Sentry 2 | . . 1 . 1 Assembled 4 | . . . 4 . Best Kill Streak 8 | . . 4 6 8 Combat Bots Only 8 | . . 4 4 8 Max Kills in Single Turn 3 | . . 3 2 2 Gunslinging . | . . . . . Exploded 2 | . . 2 1 2 Melee 1 | . . . . 1 Uniques/NPCs Destroyed . | . . . . . Combat | -11 -10 -9 -9 -8 -------- Run | Yrd Mat Mat Min Mat Hostile Shots Fired 208 | . . 24 38 146 Missed 56 | . . 9 9 38 Hits 152 | . . 15 29 108 Melee 5 | . . . 3 2 Projectile 147 | . . 15 26 106 AOE 11 | . . . 11 . Critical Strikes 4 | . . 1 . 3 Damage Taken 2918 | . . 403 901 1614 Core 858 | . . 92 213 553 Absorbed by Shields . | . . . . . Redirected to Shielding 50 | . . . 29 21 Core Remaining (%) 74 | 100 100 . 23 . Volleys Fired 92 | . . 29 18 45 Largest 2 | . . 1 1 2 Hottest 65 | . . 50 45 65 Shots Fired 95 | . . 29 18 48 Gun 50 | . . 1 8 41 Cannon . | . . . . . Launcher 45 | . . 28 10 7 Special . | . . . . . Kinetic 24 | . . . 5 19 Thermal 4 | . . . . 4 Explosive 45 | . . 28 10 7 Electromagnetic 22 | . . 1 3 18 Robot Hit Streak 13 | . . 11 4 13 Robot Miss Streak 3 | . . 2 2 3 Penetration Max . | . . . . . Secondary Targets 2 | . . . . 2 Max Gunslinging Chain 1 | . . . . 1 Shots Hit Robots 68 | . . 13 10 45 Core Hits 76 | . . 28 19 29 Critical Kills . | . . . . . Critical Parts Destroyed . | . . . . . Critical Strikes . | . . . . . Melee Attacks 9 | . . . . 9 Impact 9 | . . . . 9 Slashing . | . . . . . Piercing . | . . . . . Sneak Attacks . | . . . . . Combat Hostiles . | . . . . . Follow-up Attacks . | . . . . . Damage Inflicted 3153 | . . 1277 564 1312 Guns 715 | . . 18 52 645 Cannons . | . . . . . Explosions 2236 | . . 1259 512 465 Melee 202 | . . . . 202 Ramming . | . . . . . Kinetic 318 | . . . 24 294 Thermal 61 | . . . . 61 Explosive 2236 | . . 1259 512 465 Electromagnetic 336 | . . 18 28 290 Impact 202 | . . . . 202 Slashing . | . . . . . Piercing . | . . . . . Highest Corruption . | . . . . . Average Corruption . | . . . . . Corruption Purged . | . . . . . Corruption Blocked . | . . . . . Overload Shots . | . . . . . Overflow Damage 119 | . . 32 57 30 Projectiles . | . . . . . Explosions 110 | . . 32 57 21 Melee 9 | . . . . 9 Knockbacks 2 | . . . . 2 Impact 2 | . . . . 2 Kinetic . | . . . . . Secondary . | . . . . . Self-Inflicted Damage 542 | . . 220 189 133 Shots 19 | . . 6 6 7 Rammed . | . . . . . Targets Rammed . | . . . . . Kicked . | . . . . . Crushed . | . . . . . Highest Temperature 121 | . . 21 24 121 Average Temperature 37 | . . 7 10 45 Received Heat Transfer 829 | . . 78 40 711 Siege Activations . | . . . . . Martial Activations . | . . . . . Shielding Activations . | . . . . . Robots Disrupted . | . . . . . Combat Hostiles . | . . . . . Robots Corrupted 1 | . . . . 1 Combat Hostiles 1 | . . . . 1 Parts Fried 3 | . . . . 3 Impact Corruptions 1 | . . . . 1 Robots Melted . | . . . . . Combat Hostiles . | . . . . . Parts Melted . | . . . . . Heat Transferred 148 | . . . . 148 Parts Sabotaged . | . . . . . Parts Stolen . | . . . . . Parts Stripped . | . . . . . Power Chain Reactions . | . . . . . Alert | -11 -10 -9 -9 -8 ------- Run | Yrd Mat Mat Min Mat Maximum Alert Level 1 | . . 1 . . Low Security (%) 97 | 100 100 93 100 100 Level 1 2 | . . 6 . . Level 2 . | . . . . . Level 3 . | . . . . . Level 4 . | . . . . . Level 5 . | . . . . . High Security . | . . . . . Max Security . | . . . . . Peak Influence 213 | . . 213 89 137 Initial 78 | . . . 78 . Average 33 | . . 64 16 26 Influence Increases 961 | . . 420 73 468 Destroy 0b10 Robot/C 560 | . . 220 . 340 Destroy 0b10 Robot/NC 65 | . . 45 15 5 Destroy Leader 98 | . . 46 . 52 Disable Machine 45 | . . . . 45 Destroy Structure 193 | . . 109 58 26 Influence Decreases 848 | . . 220 273 355 Entered New Map 122 | . . . 122 . Time Decay 506 | . . 210 71 225 Lost Part 220 | . . 10 80 130 Squads Dispatched 4 | . . . . 4 Investigation 1 | . . . . 1 Extermination . | . . . . . Reinforcement 2 | . . . . 2 Assault . | . . . . . Garrison 1 | . . . . 1 Intercept . | . . . . . Searches Triggered . | . . . . . Construction Impeded 1 | . . . . 1 Haulers Reinforced . | . . . . . Active Scanning Responses . | . . . . . Cargo Convoy Interrupts . | . . . . . Stealth | -11 -10 -9 -9 -8 --------- Run | Yrd Mat Mat Min Mat Distress Signals 3 | . . 2 . 1 Communications Jammed . | . . . . . Distress Signals . | . . . . . Times Spotted 50 | . 1 14 9 26 Peak Tracking Total 8 | . 1 4 5 8 Tactical Retreats 2 | . . 2 . . ECM-based Alert Blocks 5 | . . 5 . . Traps | -11 -10 -9 -9 -8 ------- Run | Yrd Mat Mat Min Mat Traps Triggered . | . . . . . Indirectly . | . . . . . Trap Hack Attempts . | . . . . . Triggered . | . . . . . Disarmed . | . . . . . Reprogrammed . | . . . . . Reused . | . . . . . Traps Extracted . | . . . . . Installed . | . . . . . Triggered . | . . . . . Machines | -11 -10 -9 -9 -8 ---------- Run | Yrd Mat Mat Min Mat Machines Disabled 3 | . . . . 3 Max in Single Turn 1 | . . . . 1 Machines Repaired . | . . . . . Machines Dismantled . | . . . . . Machines Sabotaged . | . . . . . Overloaded Fab Kills . | . . . . . Hacking | -11 -10 -9 -9 -8 --------- Run | Yrd Mat Mat Min Mat Machines Accessed 2 | . 1 . . 1 Terminals 2 | . 1 . . 1 Fabricators . | . . . . . Repair Stations . | . . . . . Recycling Units . | . . . . . Scanalyzers . | . . . . . Garrison Access . | . . . . . Total Hacks 4 | . 1 . . 3 Successful 2 | . . . . 2 Failed 2 | . 1 . . 1 Catastrophic . | . . . . . Database Lockouts . | . . . . . Manual . | . . . . . Terminals 4 | . 1 . . 3 Fabricators . | . . . . . Repair Stations . | . . . . . Recycling Units . | . . . . . Scanalyzers . | . . . . . Garrison Access . | . . . . . Terminal Hacks 2 | . . . . 2 Record 2 | . . . . 2 Fabricator Hacks . | . . . . . Repair Station Hacks . | . . . . . Recycling Unit Hacks . | . . . . . Scanalyzer . | . . . . . Garrison Access Hacks . | . . . . . Unauthorized Hacks . | . . . . . Terminals . | . . . . . Fabricators . | . . . . . Repair Stations . | . . . . . Recycling Units . | . . . . . Scanalyzers . | . . . . . Garrison Access . | . . . . . Data Cores Recovered . | . . . . . Used . | . . . . . Hacking Detections 2 | . 1 . . 1 Full Trace Events 1 | . . . . 1 Feedback Events . | . . . . . Feedback Blocked . | . . . . . Robot Schematics Acquired . | . . . . . Robots Built . | . . . . . Authchips . | . . . . . Time . | . . . . . Total Robot Build Rating . | . . . . . Part Schematics Acquired . | . . . . . Parts Built . | . . . . . Authchips . | . . . . . Time . | . . . . . Total Part Build Rating . | . . . . . Part Studies Acquired . | . . . . . Parts Repaired . | . . . . . Time . | . . . . . Parts Recycled . | . . . . . Recycled Matter . | . . . . . Retrieved Matter . | . . . . . Retrieved Components . | . . . . . Parts Scanalyzed . | . . . . . Part Schematics Acquired . | . . . . . Parts Damaged . | . . . . . Bothacking | -11 -10 -9 -9 -8 ------------ Run | Yrd Mat Mat Min Mat Used RIF Installer . | . . . . . Robots Hacked . | . . . . . Non-combat . | . . . . . Combat . | . . . . . Robot Hacks Applied . | . . . . . Relay Couplers Released . | . . . . . Fabnet Peak Effective % . | . . . . . Robots Rewired . | . . . . . Allies Hacked . | . . . . . Hacks Repelled . | . . . . . Allies | -11 -10 -9 -9 -8 -------- Run | Yrd Mat Mat Min Mat Total Allies . | . . . . . Largest Group . | . . . . . Highest-Rated Group . | . . . . . Highest-Rated Ally . | . . . . . Total Orders . | . . . . . Ally Attacks . | . . . . . Total Damage . | . . . . . Kills . | . . . . . Allies Corrupted . | . . . . . Allies Melted . | . . . . . Intel | -11 -10 -9 -9 -8 ------- Run | Yrd Mat Mat Min Mat Active Infowar (turns) 761 | . 132 590 39 . ECM 761 | . 132 590 39 . Robot Analysis Total . | . . . . . Derelict Logs Recovered . | . . . . . Drone Launches . | . . . . . Drone Recoveries . | . . . . . Exploration | -11 -10 -9 -9 -8 ------------- Run | Yrd Mat Mat Min Mat Turns Passed 1904 | 50 152 590 301 811 Spaces Moved 797 | 41 121 313 89 233 Core 57 | 16 . . 9 32 Treads 185 | . . . . 185 Legs 539 | 25 121 313 80 . Wheels 16 | . . . . 16 Hover . | . . . . . Flight . | . . . . . Fastest Speed 50 | 50 120 120 190 95 Average Speed 187 | 92 120 154 290 243 Slowest Speed 550 | 120 120 190 550 550 Overloaded Moves . | . . . . . Propulsion Burnouts . | . . . . . Robots Hopped . | . . . . . Potential Cave-ins . | . . . . . Cave-ins Triggered . | . . . . . Exploration Rate (%) 21 | 3 36 25 22 20 Regions Visited 4 Branch Regions 1 Pre-discovered Areas . | . . . . . Known Exits Taken . | . . . . . Unknown Exits Taken 4 | 1 1 1 1 . Scrap Searched . | . . . . . Spaces Dug . | . . . . . Terrain Destroyed 257 | . . 133 99 25 Melee . | . . . . . Projectile . | . . . . . AOE 257 | . . 133 99 25 Terrain Rammed . | . . . . . Walls Destroyed . | . . . . . Machines Disabled . | . . . . . Actions | -11 -10 -9 -9 -8 --------- Run | Yrd Mat Mat Min Mat Total 1108 | 53 128 394 116 417 Wait 104 | . . 12 1 91 Move 793 | 40 120 312 88 233 Hop . | . . . . . Pick Up 49 | 8 6 21 1 13 Fast Attach 1 | . . . . 1 Attach 24 | 5 2 3 5 9 Detach . | . . . . . Swap 16 | . . 5 3 8 Drop 20 | . . 12 . 8 Fire 92 | . . 29 18 45 Melee 9 | . . . . 9 Ram . | . . . . . Kick . | . . . . . Crush . | . . . . . Escape Stasis . | . . . . . Rewire . | . . . . . Trap . | . . . . . Miscellaneous . | . . . . . Route ------- -11/Scrapyard -10/Materials -9/Materials -9/Mines -8/Materials History --------- Turn | Location | Event 2 | -11/Scrapyard | Met Revision 17 9 | -11/Scrapyard | Discovered new exit (range 16) 51 | -11/Scrapyard | Entered Materials 181 | -10/Materials | Discovered new exit (range 15) 203 | -10/Materials | Entered another Materials area 203 | -9/Materials | Evolved 2 slots: Propulsion x1, Utility x1 328 | -9/Materials | Build established: Mutant 755 | -9/Materials | Discovered new exit (range 11) 793 | -9/Materials | Entered Mines 825 | -9/Mines | Assembled infested the area 857 | -9/Mines | Discovered new exit (range 6) 872 | -9/Mines | Lost 5 parts (1p2n1u1w) 945 | -9/Mines | Received a Rocket Launcher from a helpful Derelict 1034 | -9/Mines | Core integrity fell below 50% 1069 | -9/Mines | Lost 3 parts (1n2w) 1094 | -9/Mines | Entered Materials 1094 | -8/Materials | Evolved 2 slots: Power x1, Utility x1 1870 | -8/Materials | Core integrity fell below 50% 1870 | -8/Materials | Garrison activated, responded to threat 1888 | -8/Materials | Destroyed 8 combat bots 1894 | -8/Materials | Core integrity fell below 20% 1905 | -8/Materials | Destroyed by G-47 Trooper with Particle Gun Last Messages --------------- Trooper. 01867_ The unstable cave ceiling collapses. 01867_ S-10 Pest destroyed. 01867_ Switching to secondary target: G-47 Trooper. 01870_ L-31 Rogue calls for garrison reinforcements. 01870_ ALERT: Activating Garrison Access M001. 01870_ U-05 Engineer builds a Wall. 01871_ Hpw. Shotgun destroyed. 01873_ Critical hit (Burn: +37). 01874_ U-05 Engineer builds a Wall. 01876_ Acquired 18 matter. 01876_ U-05 Engineer builds a Wall. 01876_ Shotgun destroyed. 01886_ U-05 Engineer builds a Wall. 01895_ L-31 Rogue destroyed. 01898_ Wheel destroyed. 01899_ M-13 Machinist repairs G-47 Trooper. 01903_ Lgt. Deuterium Engine destroyed. Map ----- +----------------------------------------------------+ | ??????????????????????????# ## ! | | ?????????????????????????## ## """ | | ?????????????????????????# # """ | | ?????????????????????????# =# """ | | ?????????????????????????# %=%+! | | ?????????????????????????# =%=#* """ | | ?????????????????????????# %=# """ | | ?????????????????????????## =## """ | | ??????????????????????????# ## | | ??????????????????????????# ######### | | ??????????????????????????# #???????? | | ??????????????????????????# #???????? | | ??????????????????????????# ######### | | ?????????????#+#??????????# # | | ????????????? ??????????# # | | ????????????? ??????????# # """ | | ????????????? ??????????# # """" | | ????????????? ??????????# # """" | | ????????????? ??????????# # """" | | ?????????????# #????####### # """ | | ?????????????#Y | | ?????????????# #????########+######+### | | ?????????????# #????????# " # ## | | ?????????????# #????????# " /%! # | | ???????????### #????????# " # # | | ???????????#""@#????????# # + | | ???????????#"T #???????## [ # # | | ???????????#"" #????? ## # # | | ???????????### ##?? ########### ## | | ????????????# % # # #### #? | | ????????????# + # / #? | | ????????????#ggg# """ # [ #### #? | | ????????????#m g#?? R" # ! #??# #? | | ????????????# #????" #! [ #??# #? | | ????????????# #??????# #??# #? | | ????????????# g##########+####### ## | | ????????????# | | ???????? + | | ???????? # | | ????????????# ###/################### | | ????????????# # [=%* #???????????? | | ????????????# # "*= = #???????????? | | ????????????# %[ ##??????????? | | ????????????# # #??????????? | | ????????????# = " ##??????????? | | ????????????# %[ #???????????? | | ????????????# # " #???????????? | | ????????????# # [ #???????????? | | ????????????# "# ##+##???????????? | | ????????????# "%## ####? #????????????? | +----------------------------------------------------+ Best States ------------- Heat Dissipation 31 Energy Generation 23 Energy Capacity 250 Matter Stores 400 Matter Capacity 400 Sight Range 16 Terrain Scan Density 10 ECM Strength 1 Armor Coverage 150 Core Shielding 20 Evasion (%) 55 Targeting Accuracy 8 Recoil Reduction 1 Item Schematics ----------------- None Robot Schematics ------------------ None Fabricated ------------ Nothing Repaired ---------- Nothing Studied --------- None Alien Tech Used ----------------- None Achievements -------------- None Challenges ------------ None Game ------ Seed VoltaicWeightSteel Manual? 0 Play Time 00:28:08 Cumulative 17.1 hours Start 2026.09.18 @ 19:13:55 End 2026.09.18 @ 19:41:03 Sessions 1 Manual Loads 0 Difficulty Rogue Special Mode None Game No. 20 Rogue 20 Adventurer 0 Explorer 0 Win Type - Total 0 Types 0/0/0/0/0/0/0/0/0/0 Lore% 3 Gallery% 16 Achievement% 13 Wizard Run 0 Options --------- Layout 1 ASCII 0 Keyboard 0 Movement Mouse Keybinds 0 Fullscreen 1 Font 24/Smallcaps Map View 50x35 Zoom Use 0% Tactical HUD 1 Map Filters NONE Filters NONE Steam 1 RUN: 8953492a-a39e-4575-9db7-8f0a7b76ea9e